bitfinex-derivatives/quotes_ETHF0:USTF0_20250616
["timestamp","ask_amount","ask_price","bid_price","bid_amount"]
[1750049583224,0.77629,2575.9,2575.6,2.17196566]
[1750049583426,0.77629,2575.9,2575.7,0.77633]
[1750049583625,0.77632,2575.8,2575.7,0.77633]
[1750049583829,0.7763,2575.9,2575.8,0.77632]
[1750049584129,0.7763,2575.9,2575.7,0.77633]
[1750049584335,0.77632,2575.8,2575.7,0.77633]
[1750049585441,0.77632,2575.8,2575.6,4.60396]
[1750049585628,0.7763,2575.9,2575.8,0.77632]
[1750049586731,0.77632,2575.8,2575.7,0.77633]
[1750049587531,0.77632,2575.8,2575.6,1.39616]
[1750049587835,0.77632,2575.8,2575.7,0.77635]
[1750049588233,0.77632,2575.8,2575.6,1.39616]
[1750049588833,10.0308,2576.0,2575.6,1.39616]
[1750049589136,0.77635,2575.7,2575.6,0.6198]
[1750049589332,0.77635,2575.7,2575.6,1.39618]
[1750049590038,0.77633,2575.8,2575.7,0.77634]
[1750049590234,0.7763,2575.9,2575.6,3.8276]
[1750049590430,0.77633,2575.8,2575.7,0.77634]
[1750049590631,8.91819,2576.0,2575.6,3.8276]
[1750049590837,0.77629,2575.9,2575.8,0.77629]
[1750049591339,8.1419,2576.0,2575.6,3.8276]
[1750049591633,0.77632,2575.8,2575.7,0.77633]
[1750049592339,0.77631,2575.9,2575.8,0.77631]
[1750049592539,0.77632,2575.8,2575.7,0.77633]
[1750049592738,0.77631,2575.9,2575.8,0.77631]
[1750049592940,0.622,2576.0,2575.9,0.77629]
[1750049593145,1.39826,2576.0,2575.9,0.77629]
[1750049593641,0.622,2576.0,2575.9,0.77629]
[1750049594346,0.77629,2575.9,2575.8,0.7763]
[1750049594838,1.39828,2576.0,2575.9,0.77629]
[1750049596438,0.622,2576.0,2575.9,0.77629]
[1750049596733,0.77632,2575.8,2575.7,40.8]
[1750049597139,0.6773,2576.2,2576.1,0.77621]
[1750049597140,0.77622,2576.2,2576.1,0.77621]
[1750049597441,2.17196566,2576.2,2575.8,1.15811642]
[1750049597636,2.17196566,2576.0,2575.7,4.36591642]
[1750049597833,0.77635,2575.7,2575.6,2.54876943]
[1750049598044,0.77635,2575.7,2575.6,1.39615]
[1750049598243,1.43185,2575.7,2575.6,1.39615]
[1750049600445,3.2078,2576.0,2575.6,0.6198]
[1750049600738,3.2078,2576.0,2575.9,0.77629]
[1750049601538,1.41043,2576.1,2576.0,0.77626]
[1750049603242,4.45442637,2576.4,2575.9,2.17196566]
[1750049603439,3.21362637,2576.4,2576.3,0.77617]
[1750049603639,3.98976637,2576.4,2576.3,0.77617]
[1750049603845,3.21362637,2576.4,2576.3,0.77617]
[1750049604845,0.00582637,2576.4,2576.3,1.42857]
[1750049605738,0.00582637,2576.4,2576.2,4.66468]
[1750049605943,0.77617,2576.3,2576.2,1.4569]
[1750049607143,0.78198637,2576.4,2576.2,1.4569]
[1750049607446,0.00582637,2576.4,2576.3,0.77617]
[1750049607947,0.78196637,2576.4,2576.3,0.77617]
[1750049609151,0.00582637,2576.4,2576.3,0.77617]
[1750049610445,0.00582637,2576.4,2576.3,1.92858795]
[1750049612049,0.00582637,2576.4,2576.3,0.77617]
[1750049612239,0.78196637,2576.4,2576.3,1.93063923]
[1750049613649,0.00582637,2576.4,2576.3,1.93063923]
[1750049614346,0.07320043,2576.4,2576.3,42.73063923]
[1750049618850,0.07320043,2576.4,2576.3,42.85707]
[1750049619051,0.6717,2576.7,2576.6,0.77607]
[1750049619349,0.6717,2576.7,2576.6,1.92962708]
[1750049620048,1.44774,2576.7,2576.6,1.15355708]
[1750049620252,0.77607,2576.6,2576.5,1.15355708]
[1750049621348,0.77607,2576.6,2576.5,1.92968921]
[1750049621652,2.94803566,2576.6,2576.5,1.15359921]
[1750049621955,0.7761,2576.5,2576.4,0.00582637]
[1750049622146,2.0739,2576.5,2576.4,0.00582637]
[1750049629456,2.14127406,2576.5,2576.4,0.00582637]
[1750049630656,2.14127406,2576.5,2576.4,1.15942558]
[1750049635461,2.14127406,2576.5,2576.4,0.00582637]
[1750049635846,0.7762,2576.2,2576.1,1.15359921]
[1750049636055,0.77623,2576.1,2576.0,1.15359921]
[1750049636258,0.77626,2576.0,2575.9,1.15359921]
[1750049636754,2.13556,2576.0,2575.9,1.15359921]
[1750049637559,0.77629,2575.9,2575.8,1.15359921]
[1750049637762,4.28225566,2575.9,2575.8,1.15359921]
[1750049637952,4.96725566,2575.9,2575.8,1.15359921]
[1750049639459,0.77632,2575.8,2575.7,0.00582637]
[1750049639663,2.11032,2575.8,2575.7,0.00582637]
[1750049641151,0.77632,2575.8,2575.7,0.00582637]
[1750049642160,0.77632,2575.8,2575.7,0.64052637]
[1750049642357,0.77632,2575.8,2575.7,1.79412558]
[1750049643356,0.77632,2575.8,2575.7,1.41687637]
[1750049644364,0.77632,2575.8,2575.7,0.64052637]
[1750049644861,0.77632,2575.8,2575.7,0.00582637]
[1750049647760,3.2078,2575.9,2575.7,0.00582637]
[1750049648059,0.77632,2575.8,2575.7,0.00582637]
[1750049649269,0.77632,2575.8,2575.7,0.78217637]
[1750049649464,0.77632,2575.8,2575.7,0.00582637]
[1750049651960,2.80162,2575.8,2575.7,0.00582637]
[1750049652369,0.77647,2575.3,2575.2,1.15359921]
[1750049653668,0.7765,2575.2,2575.1,1.93010921]
[1750049655165,0.77648,2575.3,2575.2,0.77649]
[1750049656064,0.7765,2575.2,2575.1,1.15359921]
[1750049656368,0.7765,2575.2,2575.1,0.77653]
[1750049656670,0.77648,2575.3,2575.2,0.77648]
[1750049656874,0.77645,2575.4,2575.3,0.77645]
[1750049657563,0.77647,2575.3,2575.2,0.77647]
[1750049659769,0.7765,2575.2,2575.1,0.77651]
[1750049659971,0.77649,2575.3,2575.2,0.77649]
[1750049660464,0.78224637,2575.5,2575.4,0.77644]
[1750049660673,0.00582637,2575.5,2575.4,0.77644]
[1750049661563,0.00582637,2575.5,2575.4,2.58933921]
[1750049661763,0.7763,2575.9,2575.8,0.77632]
[1750049661764,0.629,2575.9,2575.8,0.77632]
[1750049662662,1.40529,2575.9,2575.8,0.77632]
[1750049663769,0.77633,2575.8,2575.7,0.77634]
[1750049664570,1.40531,2575.9,2575.8,0.77632]
[1750049665468,0.77633,2575.8,2575.7,0.77633]
[1750049665868,1.4053,2575.9,2575.8,0.77632]
[1750049666165,0.629,2575.9,2575.8,0.77632]
[1750049666371,0.629,2575.9,2575.8,1.41452]
[1750049666573,0.78206637,2576.1,2576.0,0.77626]
[1750049667966,0.78205637,2576.1,2576.0,1.92985921]
[1750049669572,0.78205637,2576.1,2576.0,0.77626]
[1750049670076,0.77626,2576.0,2575.9,1.92988921]
[1750049670272,0.77626,2576.0,2575.9,1.15359921]
[1750049670578,0.77629,2575.9,2575.8,1.15359921]
[1750049670773,2.69359,2575.9,2575.8,1.92991921]
[1750049671072,2.69361,2575.9,2575.8,0.77632]
[1750049672775,0.77632,2575.8,2575.7,1.92992921]
[1750049674267,0.77632,2575.8,2575.7,1.93223636]
[1750049676374,2.06982,2575.8,2575.7,1.93223636]
[1750049677374,2.06982,2575.8,2575.7,1.15590636]
[1750049677572,2.06982,2575.8,2575.7,1.93225636]
[1750049680378,2.02911,2575.9,2575.8,0.77632]
[1750049682281,0.77632,2575.8,2575.7,1.9316816]
[1750049683173,2.02911,2575.9,2575.8,0.77632]
[1750049683374,3.29721,2575.9,2575.8,0.77632]
[1750049683877,2.02911,2575.9,2575.8,0.77632]
[1750049685384,2.02911,2575.9,2575.8,1.9316716]
[1750049685586,0.77632,2575.8,2575.7,1.9316816]
[1750049686583,2.5209,2575.9,2575.6,1.5380761]
[1750049686888,0.77635,2575.7,2575.6,1.1561108]
[1750049687383,2.03205,2575.7,2575.6,1.9324908]
[1750049687586,0.77633,2575.8,2575.5,1.5380761]
[1750049687790,0.77633,2575.8,2575.7,1.93259094]
[1750049690388,0.77633,2575.8,2575.7,0.77632]
[1750049690591,0.6312,2575.9,2575.8,0.77632]
[1750049690896,1.40749,2575.9,2575.8,1.93385987]
[1750049692189,1.40749,2575.9,2575.8,1.93437239]
[1750049692385,3.57945566,2575.9,2575.8,1.15805239]
[1750049692588,0.77632,2575.8,2575.7,1.15805239]
[1750049692893,0.77635,2575.7,2575.6,1.22542645]
[1750049693191,2.94831566,2575.7,2575.6,1.22542645]
[1750049693393,4.27501566,2575.7,2575.6,1.22542645]
[1750049693792,4.27501566,2575.7,2575.6,0.06737406]
[1750049694389,0.77638,2575.6,2575.5,1.15805239]
[1750049694697,0.77638,2575.6,2575.4,1.15805239]
[1750049694698,0.77641,2575.5,2575.4,1.15805239]
[1750049694995,1.42721,2575.5,2575.4,1.15805239]
[1750049695195,2.75391,2575.5,2575.4,1.15805239]
[1750049696091,2.75391,2575.5,2575.4,1.93449239]
[1750049696291,6.8307,2575.8,2575.4,1.15805239]
[1750049696492,0.6688,2575.7,2575.6,0.77638]
[1750049696695,1.44518,2575.7,2575.6,1.93443239]
[1750049697195,0.77633,2575.8,2575.7,0.77633]
[1750049697394,0.77633,2575.8,2575.7,1.93392797]
[1750049698289,0.77633,2575.8,2575.7,1.15759797]
[1750049698489,0.77633,2575.8,2575.7,1.93394797]
[1750049699195,0.77633,2575.8,2575.7,1.15759797]
[1750049699792,0.77633,2575.8,2575.7,1.93394797]
[1750049699991,0.77633,2575.8,2575.7,1.15759797]
[1750049700696,0.77635,2575.7,2575.6,1.15759797]
[1750049701597,0.77635,2575.7,2575.6,1.93397797]
[1750049701996,0.77635,2575.7,2575.6,0.77638]
[1750049702299,0.77638,2575.6,2575.5,2.9375561]
[1750049708406,0.77636,2575.7,2575.6,0.77635]
[1750049708600,0.77636,2575.7,2575.6,2.3200892]
[1750049710894,3.8766,2575.9,2575.6,2.3200892]
[1750049711100,0.77634,2575.8,2575.7,1.93409091]
[1750049711598,0.77634,2575.8,2575.7,0.77632]
[1750049711804,0.77635,2575.7,2575.6,2.3200992]
[1750049714206,0.77631,2575.9,2575.8,0.7763]
[1750049714906,0.77631,2575.9,2575.8,2.32016519]
[1750049715201,0.77631,2575.9,2575.8,0.7763]
[1750049715809,0.77632,2575.8,2575.7,49.30119519]
[1750049716902,0.77632,2575.8,2575.7,43.12019519]
[1750049717208,0.77632,2575.8,2575.7,2.32019519]
[1750049717801,0.77635,2575.7,2575.6,1.54386519]
[1750049718005,2.94831566,2575.7,2575.6,1.54386519]
[1750049718204,0.77638,2575.6,2575.5,2.32025519]
[1750049718406,0.77638,2575.6,2575.5,1.54386519]
[1750049718613,4.4566,2575.6,2575.3,1.15892003]
[1750049718910,4.4566,2575.6,2575.0,2.32497821]
[1750049718911,0.77647,2575.3,2575.2,1.15892003]
[1750049719108,2.94843566,2575.3,2575.2,1.15892003]
[1750049719610,0.7765,2575.2,2575.1,1.15892003]
[1750049719810,2.0253,2575.2,2575.1,1.15892003]
[1750049720313,0.7765,2575.2,2575.1,1.15892003]
[1750049721208,0.7765,2575.2,2575.1,1.93545003]
[1750049721505,1.9674,2575.4,2575.1,1.15892003]
[1750049721711,0.7765,2575.2,2575.1,1.93543003]
[1750049726621,0.7765,2575.2,2575.1,1.93545003]
[1750049729320,1.9674,2575.4,2575.0,1.1647464]
[1750049729620,0.77651,2575.2,2575.1,0.77652]
[1750049729915,0.77653,2575.1,2575.0,1.1647464]
[1750049730124,2.94849566,2575.1,2575.0,0.00582637]
[1750049730920,4.31869566,2575.1,2575.0,0.00582637]
[1750049734123,2.14673,2575.1,2575.0,0.00582637]
[1750049734825,2.14673,2575.1,2575.0,0.78238637]
[1750049735423,0.49302599,2575.0,2574.9,0.77659]
[1750049735612,1.11612599,2575.0,2574.9,0.77659]
[1750049735817,1.89268599,2575.0,2574.9,0.77659]
[1750049736219,1.39966,2575.0,2574.8,3.27517406]
[1750049736725,1.39966,2575.0,2574.9,0.77659]
[1750049740117,0.77654,2575.1,2575.0,0.77656]
[1750049740721,1.3437,2575.2,2575.1,0.77653]
[1750049740927,1.4533,2575.2,2575.1,0.77653]
[1750049742623,0.77653,2575.1,2575.0,1.93259539]
[1750049743027,0.77653,2575.1,2575.0,1.93262539]
[1750049743328,0.77653,2575.1,2575.0,0.77656]
[1750049744214,2.17196566,2575.1,2574.8,3.2078]
[1750049744420,2.94856566,2574.9,2574.8,0.77662]
[1750049744620,2.94856566,2574.9,2574.7,1.16274902]
[1750049744621,0.77662,2574.8,2574.7,1.93936902]
[1750049744932,1.40942,2574.8,2574.7,1.16274902]
[1750049745130,1.40942,2574.8,2574.7,0.00582637]
[1750049745830,2.71542,2574.8,2574.7,0.00582637]
[1750049749629,7.71542,2574.8,2574.7,0.00582637]
[1750049750028,7.71542,2574.8,2574.7,6.37e-06]
[1750049750428,11.57242,2574.8,2574.7,6.37e-06]
[1750049751222,36.52542,2574.8,2574.7,6.37e-06]
[1750049751435,5.26642,2574.8,2574.7,6.37e-06]
[1750049751934,24.55862,2574.8,2574.7,6.37e-06]
[1750049752324,24.55862,2574.8,2574.7,0.06738043]
[1750049752532,0.77662,2574.8,2574.7,0.06738043]
[1750049752737,0.77662,2574.8,2574.7,0.84403043]
[1750049752931,0.665,2574.9,2574.7,0.84403043]
[1750049753126,6.8143,2575.2,2574.7,0.06738043]
[1750049753330,23.781,2575.1,2574.8,0.6258]
[1750049753635,0.7766,2574.9,2574.8,1.40241]
[1750049753832,0.7766,2574.9,2574.8,0.6258]
[1750049754028,7.4886,2575.2,2574.8,0.6258]
[1750049754234,0.77659,2574.9,2574.8,4.99052265]
[1750049754535,0.77659,2574.9,2574.8,1.78272265]
[1750049755130,0.77659,2574.9,2574.8,2.55934265]
[1750049755334,0.77659,2574.9,2574.8,1.78272265]
[1750049755839,0.77659,2574.9,2574.8,2.55934265]
[1750049756042,0.77659,2574.9,2574.8,3.84034265]
[1750049756238,23.781,2575.1,2574.9,0.77658]
[1750049756439,0.77654,2575.1,2575.0,0.77655]
[1750049756740,0.77654,2575.1,2575.0,2.75765]
[1750049756928,0.77654,2575.1,2575.0,43.55765]
[1750049757539,0.77654,2575.1,2575.0,42.7811]
[1750049757741,0.77654,2575.1,2575.0,43.55766]
[1750049758339,0.77654,2575.1,2575.0,42.7811]
[1750049759440,0.77654,2575.1,2575.0,43.93802265]
[1750049760641,0.77654,2575.1,2575.0,41.4827]
[1750049761040,0.77654,2575.1,2575.0,0.6827]
[1750049761238,0.77654,2575.1,2575.0,1.45926]
[1750049761442,0.77651,2575.2,2575.1,0.77653]
[1750049762538,0.77653,2575.1,2575.0,3.93686265]
[1750049763142,0.77653,2575.1,2575.0,3.16032265]
[1750049764034,0.77653,2575.1,2575.0,3.93688265]
[1750049764238,3.2078,2575.3,2575.0,3.93688265]
[1750049764442,10.027,2575.6,2575.1,2.17196566]
[1750049764640,0.77647,2575.3,2575.2,1.15692265]
[1750049764845,0.7765,2575.2,2575.1,2.04331]
[1750049765141,0.7765,2575.2,2575.1,3.19907467]
[1750049765646,0.7765,2575.2,2575.1,2.42256467]
[1750049765846,0.7765,2575.2,2575.1,1.15576467]
[1750049766044,0.7765,2575.2,2575.1,1.93229467]
[1750049768740,0.7765,2575.2,2575.1,8.10229467]
[1750049768937,0.77648,2575.3,2575.2,0.77648]
[1750049769743,0.77644,2575.5,2575.4,0.77643]
[1750049769947,1.9741,2575.9,2575.3,3.32773033]
[1750049770242,0.77639,2575.6,2575.5,1.93214467]
[1750049770448,0.77639,2575.6,2575.5,0.77638]
[1750049771846,0.77641,2575.5,2575.4,1.93218467]
[1750049772445,0.77641,2575.5,2575.4,0.77642]
[1750049773649,0.77644,2575.4,2575.3,8.10220467]
[1750049773852,0.77643,2575.5,2575.4,0.77642]
[1750049774642,2.17196566,2575.7,2575.3,8.10121467]
[1750049774643,0.77644,2575.4,2575.3,8.10121467]
[1750049776652,0.77644,2575.4,2575.3,1.93221467]
[1750049776850,0.77644,2575.4,2575.3,1.15576467]
[1750049777146,2.17196566,2575.5,2575.1,1.54382497]
[1750049777147,0.77649,2575.3,2575.2,0.77648]
[1750049777352,1.43859,2575.3,2575.2,0.77648]
[1750049778842,0.7765,2575.2,2575.1,8.09627467]
[1750049780353,0.7765,2575.2,2575.1,6.94051]
[1750049781454,1.43858,2575.3,2575.2,0.7765]
[1750049781648,0.6621,2575.3,2575.2,5.14010624]
[1750049781855,0.77639,2575.6,2575.5,0.77639]
[1750049782150,1.46089,2575.6,2575.5,1.93198599]
[1750049785055,1.46089,2575.6,2575.5,1.15559599]
[1750049785756,2.70319,2575.6,2575.5,1.15559599]
[1750049787058,2.70319,2575.6,2575.5,1.93200599]
[1750049787246,0.77637,2575.7,2575.6,0.77636]
[1750049787452,1.44347,2575.7,2575.6,1.93290535]
[1750049787652,1.44347,2575.7,2575.6,0.77636]
[1750049790359,0.6671,2575.7,2575.6,0.77636]
[1750049790660,0.77632,2575.8,2575.7,0.77632]
[1750049790862,0.77632,2575.8,2575.7,1.93334554]
[1750049791062,0.77632,2575.8,2575.7,1.15702554]
[1750049791560,4.85718566,2575.8,2575.7,1.15702554]
[1750049791761,0.77635,2575.7,2575.6,1.93339554]
[1750049791957,0.77635,2575.7,2575.6,1.15702554]
[1750049792761,0.77635,2575.7,2575.6,1.93340554]
[1750049792962,0.77635,2575.7,2575.6,1.15702554]
[1750049793563,0.77638,2575.6,2575.5,2.32021497]
[1750049793763,0.77637,2575.7,2575.6,0.77636]
[1750049794267,0.682,2575.9,2575.5,4.75162497]
[1750049794466,1.45832,2575.9,2575.8,0.77632]
[1750049794673,0.65272637,2576.1,2576.0,0.77626]
[1750049794965,0.00582637,2576.1,2576.0,0.77626]
[1750049795165,0.00582637,2576.1,2576.0,2.32008497]
[1750049795361,0.78205637,2576.1,2575.9,3.00529497]
[1750049795564,0.77626,2576.0,2575.9,2.32009497]
[1750049795969,0.77629,2575.9,2575.8,7.70682497]
[1750049796168,0.77629,2575.9,2575.8,1.54382497]
[1750049796467,0.77629,2575.9,2575.8,1.93346252]
[1750049796668,0.77629,2575.9,2575.8,8.09646252]
[1750049796967,0.77629,2575.9,2575.8,7.32014252]
[1750049798364,0.77629,2575.9,2575.8,8.09646252]
[1750049798861,3.59925566,2575.9,2575.8,1.15714252]
[1750049799073,4.27925566,2575.9,2575.8,1.15714252]
[1750049799461,4.27925566,2575.9,2575.6,1.54382497]
[1750049799462,0.77632,2575.8,2575.7,1.15714252]
[1750049799667,0.77635,2575.7,2575.6,1.15714252]
[1750049799867,2.13565,2575.7,2575.6,1.15714252]
[1750049800067,2.13565,2575.7,2575.5,6.163]
[1750049800068,0.77636,2575.7,2575.5,10.91462497]
[1750049800267,0.77636,2575.7,2575.6,0.77636]
[1750049800567,0.77636,2575.7,2575.6,2.32018497]
[1750049805970,1.331,2575.9,2575.6,1.54382497]
[1750049806173,1.42729,2575.9,2575.8,1.15812861]
[1750049807971,1.42729,2575.9,2575.7,1.15812861]
[1750049808175,2.07432,2575.8,2575.7,1.15812861]
[1750049809573,0.77635,2575.7,2575.6,1.54382497]
[1750049809873,0.77638,2575.6,2575.5,1.54382497]
[1750049810070,1.44808,2575.6,2575.5,2.32023497]
[1750049810272,2.74608,2575.6,2575.5,2.32023497]
[1750049810574,2.74608,2575.6,2575.5,0.77641]
[1750049811274,0.6717,2575.6,2575.5,3.09556184]
[1750049812678,0.77631,2575.9,2575.5,3.09556184]
[1750049812679,0.77631,2575.9,2575.8,0.77632]
[1750049812880,1.40851,2575.9,2575.8,1.93514156]
[1750049813271,0.6322,2575.9,2575.8,1.93514156]
[1750049813777,0.6322,2575.9,2575.8,0.77632]
[1750049816272,1.40849,2575.9,2575.8,0.77632]
[1750049817284,0.6322,2575.9,2575.8,0.77632]
[1750049817783,1.40849,2575.9,2575.8,0.77632]
[1750049818581,0.6322,2575.9,2575.8,0.77632]
[1750049819280,1.40849,2575.9,2575.8,0.77632]
[1750049819482,0.6322,2575.9,2575.8,0.77632]
[1750049822585,0.6322,2575.9,2575.8,3.98412]
[1750049822985,1.40849,2575.9,2575.8,3.98412]
[1750049823782,0.6322,2575.9,2575.8,3.98412]
[1750049824087,1.40849,2575.9,2575.8,3.98412]
[1750049824792,0.6322,2575.9,2575.8,3.98412]
[1750049825490,1.40849,2575.9,2575.8,5.52921542]
[1750049825992,1.40849,2575.9,2575.7,0.638]
[1750049825993,0.77632,2575.8,2575.7,1.54509542]
[1750049826288,0.77632,2575.8,2575.7,2.32144542]
[1750049826680,0.6322,2575.9,2575.8,0.77632]
[1750049826878,0.6322,2575.9,2575.8,2.3221858]
[1750049827092,1.40849,2575.9,2575.8,2.3221858]
[1750049827278,2.65539,2575.9,2575.8,0.77632]
[1750049827783,0.77632,2575.8,2575.7,2.3221858]
[1750049827986,2.02322,2575.8,2575.7,2.3221858]
[1750049828186,2.02322,2575.8,2575.7,1.5458658]
[1750049828593,2.02322,2575.8,2575.7,2.3222158]
[1750049828794,0.77632,2575.8,2575.7,0.77635]
[1750049830395,1.4085,2575.9,2575.8,0.77632]
[1750049830697,0.6322,2575.9,2575.8,2.32233385]
[1750049831398,0.6322,2575.9,2575.8,5.53013385]
[1750049831595,1.40849,2575.9,2575.8,5.53013385]
[1750049835298,1.40849,2575.9,2575.8,4.75381385]
[1750049835794,1.40849,2575.9,2575.8,5.53013385]
[1750049835997,1.40849,2575.9,2575.8,2.32233385]
[1750049836193,3.58045566,2575.9,2575.8,1.54601385]
[1750049836697,0.77632,2575.8,2575.7,0.77634]
[1750049836906,2.09082,2575.8,2575.7,0.77634]
[1750049838702,0.77635,2575.7,2575.6,3.09401313]
[1750049839201,2.09084,2575.8,2575.7,0.77635]
[1750049839402,2.09084,2575.8,2575.7,2.32287515]
[1750049840002,0.6322,2575.9,2575.8,0.77632]
[1750049840204,1.4085,2575.9,2575.8,0.77632]
[1750049840498,0.77632,2575.8,2575.7,1.54652515]
[1750049840690,0.77632,2575.8,2575.7,2.32287515]
[1750049841705,0.6322,2575.9,2575.8,0.77632]
[1750049841706,1.40851,2575.9,2575.8,0.77632]
[1750049842099,29.13159203,2576.1,2575.8,19.62572879]
[1750049842100,0.00582637,2576.1,2575.8,19.62572879]
[1750049842303,1.43711,2576.5,2576.4,0.77614]
[1750049842505,0.661,2576.5,2576.4,2.32022367]
[1750049842699,26.9518,2576.9,2576.6,0.77608]
[1750049842898,1.43704,2576.8,2576.7,0.77605]
[1750049843096,1.43704,2576.8,2576.7,5.14180414]
[1750049843097,0.661,2576.8,2576.7,5.14180414]
[1750049843400,0.6389,2577.0,2576.8,0.776]
[1750049843401,1.42070637,2577.0,2576.8,0.776]
[1750049843602,0.64472637,2577.0,2576.9,0.77598]
[1750049843807,0.00582637,2577.0,2576.9,0.77598]
[1750049844418,0.00582637,2577.0,2576.8,2.58554414]
[1750049844605,0.77598,2576.9,2576.8,1.80955414]
[1750049844807,0.77605,2576.7,2576.6,1.15795414]
[1750049845006,2.94801566,2576.7,2576.6,1.15795414]
[1750049845511,1.43231,2576.8,2576.7,0.77605]
[1750049846008,1.43231,2576.8,2576.6,1.15795414]
[1750049846499,0.6563,2576.8,2576.7,0.77605]
[1750049846708,0.6563,2576.8,2576.7,3.98385]
[1750049847106,1.43231,2576.8,2576.7,3.2078]
[1750049848314,0.6563,2576.8,2576.5,1.16378051]
[1750049848516,0.77608,2576.6,2576.5,0.00582637]
[1750049849304,2.05438,2576.6,2576.5,0.00582637]
[1750049849703,0.6563,2576.8,2576.5,0.00582637]
[1750049849903,0.00582637,2577.0,2576.7,3.98385]
[1750049850204,0.77601,2576.8,2576.7,3.2078]
[1750049850409,0.77601,2576.8,2576.7,3.98385]
[1750049850601,0.77601,2576.8,2576.7,3.2078]
[1750049851210,0.77601,2576.8,2576.7,3.98385]
[1750049851411,0.77601,2576.8,2576.7,3.2078]
[1750049852612,0.77605,2576.7,2576.6,0.6802]
[1750049853315,1.44184,2576.8,2576.6,1.45628]
[1750049853701,1.44184,2576.8,2576.6,0.6802]
[1750049853906,0.6658,2576.8,2576.7,3.2078]
[1750049854103,0.00582637,2577.0,2576.7,3.2078]
[1750049854308,0.77601,2576.8,2576.7,3.8873]
[1750049854809,0.77601,2576.8,2576.7,0.6795]
[1750049855004,0.84338406,2576.8,2576.7,0.6795]
[1750049856007,0.06737406,2576.8,2576.7,4.66334]
[1750049856313,0.06737406,2576.8,2576.7,3.8873]
[1750049856518,0.84338406,2576.8,2576.7,3.8873]
[1750049857013,0.06737406,2576.8,2576.7,3.8873]
[1750049857204,0.06737406,2576.8,2576.7,5.1872]
[1750049857413,0.84338406,2576.8,2576.7,5.1872]
[1750049857616,0.84338406,2576.8,2576.7,0.6795]
[1750049858116,0.77608,2576.6,2576.5,0.00582637]
[1750049858318,2.94804566,2576.6,2576.5,0.00582637]
[1750049858921,0.77608,2576.6,2576.5,0.00582637]
[1750049861518,0.77608,2576.6,2576.5,0.78193637]
[1750049861913,0.6833,2576.7,2576.5,0.00582637]
[1750049862117,0.84341406,2576.8,2576.6,0.77606]
[1750049862423,0.84341406,2576.8,2576.6,2.06636]
[1750049862623,0.77604,2576.7,2576.6,2.06636]
[1750049862824,0.06737406,2576.8,2576.6,2.06636]
[1750049863417,0.77604,2576.7,2576.6,2.06636]
[1750049865020,0.77604,2576.7,2576.6,1.2903]
[1750049865732,0.77604,2576.7,2576.6,2.06637]
[1750049867228,0.77604,2576.7,2576.6,1.80498139]
[1750049867523,0.77608,2576.6,2576.5,4.36650776]
[1750049868031,0.77608,2576.6,2576.5,3.21362637]
[1750049868327,2.07048,2576.6,2576.5,44.01362637]
[1750049868826,2.07048,2576.6,2576.5,3.21362637]
[1750049869228,4.24244566,2576.6,2576.5,3.21362637]
[1750049869728,2.07048,2576.6,2576.5,3.98973637]
[1750049870030,2.07048,2576.6,2576.5,4.36650776]
[1750049871331,2.07048,2576.6,2576.5,4.75771004]
[1750049873529,2.07048,2576.6,2576.5,5.53382004]
[1750049874723,2.07048,2576.6,2576.5,4.75771004]
[1750049875434,5.27828,2576.6,2576.5,1.16395443]
[1750049878327,5.27828,2576.6,2576.5,0.22633443]
[1750049878530,5.27828,2576.6,2576.3,0.22050806]
[1750049878531,0.77613,2576.4,2576.3,0.22050806]
[1750049878730,0.77626,2576.0,2575.9,1.54408367]
[1750049878935,1.94049,2576.3,2575.8,1.54456394]
[1750049878936,0.77629,2575.9,2575.8,1.54456394]
[1750049879229,1.2879,2575.9,2575.6,42.34456394]
[1750049879534,0.77635,2575.7,2575.6,42.34456394]
[1750049880129,0.77638,2575.6,2575.5,0.00582637]
[1750049880633,2.06428,2575.6,2575.5,0.00582637]
[1750049886243,3.2078,2576.4,2575.5,16.53159203]
[1750049886537,2.5258,2576.3,2575.8,3.98411]
[1750049886838,1.41947,2576.3,2576.0,2.17196566]
[1750049887032,0.77619,2576.3,2576.1,0.7762]
[1750049887331,0.77619,2576.3,2576.1,0.77621]
[1750049887542,0.77619,2576.3,2576.2,0.77619]
[1750049887734,0.77619,2576.3,2576.1,0.77621]
[1750049888540,0.77619,2576.2,2576.1,0.77621]
[1750049888739,3.2078,2576.4,2576.1,0.77621]
[1750049888940,3.2078,2576.4,2576.0,0.77623]
[1750049889240,0.77622,2576.2,2576.0,0.77623]
[1750049890037,0.77622,2576.2,2576.1,0.77622]
[1750049890443,1.94031,2576.5,2575.9,46.946]
[1750049890640,4.5383,2576.4,2575.9,46.946]
[1750049890840,4.5383,2576.4,2575.9,47.72227]
[1750049891344,0.77626,2576.0,2575.9,47.72227]
[1750049891642,0.77626,2576.0,2575.9,40.8]
[1750049891843,0.77625,2576.1,2575.9,46.946]
[1750049892145,0.77625,2576.1,2575.9,47.72226]
[1750049892337,4.5383,2576.4,2575.9,41.57626]
[1750049892537,0.77624,2576.1,2575.9,47.72226]
[1750049892740,0.77624,2576.1,2575.9,41.57626]
[1750049892938,0.77626,2576.0,2575.9,46.946]
[1750049893134,0.77624,2576.1,2575.9,47.72226]
[1750049893340,4.5383,2576.4,2575.9,47.72226]
[1750049893547,0.77624,2576.1,2576.0,0.77625]
[1750049894445,0.77623,2576.1,2576.0,0.77625]
[1750049895242,0.77623,2576.1,2575.9,47.72227]
[1750049895446,0.77623,2576.1,2576.0,0.77626]
[1750049895646,0.77621,2576.2,2576.0,0.77626]
[1750049895849,0.77621,2576.2,2576.1,3.98402]
[1750049896144,0.77617,2576.3,2576.1,3.2078]
[1750049896441,0.77615,2576.4,2576.1,3.2078]
[1750049896643,0.77616,2576.3,2576.2,0.77617]
[1750049897040,0.77624,2576.1,2575.9,48.49056394]
[1750049897237,0.77621,2576.2,2576.1,0.77622]